{"text_format":"1","workbook":"xlsx","n_sheets":6,"sheets":["はじめに","R７様式第1号","R７様式第1号（別紙1）","R７様式第1号（別紙２）","R７様式第1号（別紙３）","プルダウン"],"not_rendered":{"charts":0,"images":1,"macros":1,"external_links":0,"defined_names":3,"comments":0,"pivot_tables":0},"unopened":[],"bounds":{"document_bytes":16777216,"sheet_cells":100000,"rows_first":2000,"rows_last":500,"rows_between":2000,"halvings":0,"cell_chars":16384,"cell_head_chars":4096},"cells_cut":0,"cells_raw":0,"read":"whole","date_system":"1900"}

{"sheet":"はじめに","index":0,"n_rows":29,"n_cols":2,"rows_kept":29,"cut":false,"hidden":false,"merged":[[1,0,1,12],[2,0,2,12],[4,1,4,12],[7,1,7,12]]}
["はじめに"]
["　このエクセルファイルで就職氷河期世代等待遇向上支援助成金の「事業実施計画件交付申請書」を作成します。\n（事業実施計画兼交付申請書は①「様式第1号」、②「様式第1号（別紙1）」、③「様式第1号（別紙2）」④「様式第1号（別紙3）」からなる四枚組の様式です）\n※この書類だけでは申請できません。他の必要書類については、「提出書類セルフチェックリスト（①交付申請時）」をご参照ください。\n"]
["作成に当たっては下記の手順を参考にしてください。"]
["①","黄色のセルに必要事項を入力する"]
[null,"各シート（①～③）ごとの黄色のセルに必要事項を入力してください。\n入力内容については申請の手引きをよく確認し、プルダウンで選択ができる箇所は選択項目から入力してください。"]
[]
["②","□（チェックボックス）に✔（チェック）をいれる"]
[null,"申請内容に合わせて必要事項に✔を入れてください。"]
[null,"対象労働者数、助成金の加算については、チェックを入れると自動で申請額が計算されます。"]
[null,"※チェックをいれても計算がされない場合は、エクセルの設定でブックの計算が自動になっているか確認してください。"]
[null,"（ファイル→オプション→数式　から　「計算方法の設定」が「自動」になっていることを確認してください。）"]
[]
[]
[]
[]
[]
[]
[]
[]
[]
[]
["③","①～③の申請書類を印刷して申請書「様式第1号」に実印（印鑑証明書に登録されているもの）を押す"]
[null,"必要事項の記入が完了したら、印刷し（白黒印刷の設定になっています）、様式第1号の㊞の箇所に実印を押してください。"]
[null,"※記入枠にかからないよう、印鑑を押してください。"]
[null,"※A4用紙、片面で3枚になるように印刷してください。"]
[null,"※両面で印刷をしないでください！"]
[]
["④","完成後のお手続き"]
["　","書類完成後は申請の手引きに記載のある、他の提出書類とあわせて担当までご提出ください。"]

{"sheet":"R７様式第1号","index":1,"n_rows":37,"n_cols":15,"rows_kept":37,"cut":false,"hidden":false,"merged":[[7,10,7,13],[11,18,11,19],[34,7,34,10],[11,0,12,14],[13,0,13,14],[9,0,9,14],[15,1,15,4],[15,6,15,10],[4,2,5,4],[6,2,6,4],[7,2,7,4],[4,5,4,6],[5,5,5,6],[7,5,7,8],[1,11,1,14],[4,7,4,9],[4,11,4,13],[5,7,5,13],[6,5,6,13],[3,5,3,6],[3,7,3,9],[3,11,3,13]]}
["様式第1号（第8条関係）",null,null,null,null,null,null,null,null,null,null,null,null,null,"（令和7年度申請用）"]
[null,null,null,null,null,null,null,null,null,null,null,"年　　月　　日"]
[]
["東京都知事殿",null,null,null,null,"郵便番号",null,null,null,null,"―"]
[null,null,"事業主の所在地",null,null,"都道\n府県",null,null,null,null,"区市\n町村"]
[null,null,null,null,null,"丁目・番地・号・建物名"]
[null,null,"事業主の名称",null,null,null,null,null,null,null,null,null,null,null,"印"]
[null,null,"代表者役職",null,null,null,null,null,null,"代表者氏名"]
[]
["東京都就職氷河期世代等待遇向上支援助成金\n事業実施計画書兼交付申請書"]
[]
["　東京都氷河期世代等待遇向上支援助成金（以下「助成金」という。）について、助成金交付要綱第8条に基づき、下記のとおり申請します。"]
[]
["記"]
["1　事業実施予定期間（支援期間）"]
[null,null,null,null,null,"から",{"$f":"IFERROR(VLOOKUP(B16,プルダウン!A:U,2,FALSE),\"\")","v":""},null,null,null,null,"まで"]
["2　事業実施計画"]
[]
[null,"【正社員等コース】"]
[null,"(1)対象労働者数",null,null,null,null,null,null,null,null,null,{"$f":"IF(プルダウン!H6>1,\"無効な入力です\",\"\")","v":""}]
[null,"(2)退職金制度整備加算申請"]
[]
[null,null,null,null,null,null,null,null,null,null,null,null,null,null,{"$f":"IF(プルダウン!I6>1,\"無効な入力です\",\"\")","v":""}]
[null,"(3)結婚・育児支援制度整備加算申請"]
[]
[]
[null,"(4)賃上げ加算申請"]
[]
[null,"   賃上げを実施",null,null,null,null,null,null,null,null,null,{"$f":"IF(プルダウン!K6>1,\"無効な入力です\",\"\")","v":""}]
[]
[null,"【安定有期雇用コース】"]
[null,"(1)対象労働者数",null,null,null,null,null,null,null,null,null,{"$f":"IF(プルダウン!P6>1,\"無効な入力です\",\"\")","v":""}]
[]
["3 助成金交付申請額"]
[null,null,null,null,null,null,"金",{"$f":"プルダウン!R6","v":0},null,null,null,"円"]
[]
[null,null,null,null,{"$f":"IF((プルダウン!H11+プルダウン!P11)>3,\"無効な入力です\",\"\")","v":""},null,null,{"$f":"IF((プルダウン!H11+プルダウン!P11)<プルダウン!O11,\"無効な入力です\",\"\")","v":""}]

{"sheet":"R７様式第1号（別紙1）","index":2,"n_rows":45,"n_cols":12,"rows_kept":45,"cut":false,"hidden":false,"merged":[[4,1,4,2],[4,3,4,4],[4,5,4,8],[5,1,5,2],[5,3,5,4],[5,5,7,7],[5,8,7,8],[6,1,6,2],[6,3,6,4],[7,1,7,2],[7,3,7,4],[8,1,8,2],[8,3,8,4],[8,5,8,7],[9,1,9,2],[9,3,9,4],[9,5,9,7],[10,1,10,2],[10,3,10,4],[10,5,10,7],[12,1,12,2],[12,3,12,4],[12,5,12,8],[13,1,13,2],[13,3,13,4],[13,5,15,7],[13,8,15,8],[14,1,14,2],[14,3,14,4],[15,1,15,2],[15,3,15,4],[27,4,27,11],[19,3,20,3],[19,5,19,11],[20,5,20,11],[21,4,21,11],[22,4,22,11],[23,3,23,4],[23,8,23,11],[24,3,25,3],[24,5,24,7],[24,9,24,11],[25,4,25,5],[25,6,25,11],[26,3,26,11],[36,3,37,3],[36,5,36,7],[36,9,36,11],[28,4,28,11],[29,3,29,4],[29,8,29,11],[30,3,31,3],[30,5,30,7],[30,9,30,11],[31,4,31,5],[31,6,31,11],[32,4,32,11],[33,4,33,11],[34,4,34,11],[35,3,35,4],[35,8,35,11],[41,10,41,11],[42,3,42,6],[42,7,42,11],[43,3,43,6],[43,7,43,11],[19,1,31,1],[19,2,31,2],[41,1,43,1],[41,2,43,2],[41,4,41,8],[37,4,37,5],[37,6,37,11],[38,8,38,9],[39,1,40,1],[39,2,40,2],[39,3,40,6],[39,7,40,7],[39,8,40,9],[39,10,40,11],[32,1,37,1],[32,2,37,2]]}
["様式第1号（第8条関係）別紙1",null,null,null,null,null,null,null,null,null,"（令和7年度申請用）"]
[]
["４ 助成金交付申請額内訳"]
[null,"【正規雇用等コース】"]
[null,"対象労働者数",null,"金額",null,"交付申請額"]
[null,"1人",null,300000,null,{"$f":"プルダウン!L6","v":0},null,null,"円"]
[null,"2人",null,600000]
[null,"3人以上",null,900000]
[null,"退職金加算",null,"100,000 円",null,{"$f":"プルダウン!M6","v":0},null,null,"円"]
[null,"結婚育児加算",null,"100,000 円",null,{"$f":"プルダウン!N6","v":0},null,null,"円"]
[null,"賃上げ加算",null,"360,000 円（最大）",null,{"$f":"プルダウン!O6","v":0},null,null,"円"]
[null,"【安定有期雇用コース】"]
[null,"対象労働者数",null,"金額",null,"交付申請額"]
[null,"1人",null,200000,null,{"$f":"プルダウン!Q6","v":0},null,null,"円"]
[null,"2人",null,400000]
[null,"3人以上",null,600000]
[]
[]
["５　事業主の概要"]
[null,"①","雇用保険適用\n事業所の所在地","㋐\n(該当する項目をチェック☑）","\n\n　　","特定求職者雇用開発助成金の支給決定を受けた事業主（就職氷河期世代安定雇用実現コース）\n特定求職者雇用開発助成金の支給決定を受けた雇用保険適用事業所の所在地"]
[null,null,null,null,"\n\n　　","東京都の就職支援事業を利用した事業主\n対象労働者が採用時に在籍した雇用保険適用事業所の所在地"]
[null,null,null,null,"　事業主（本社）の所在地"]
[null,null,null,null,"　事業主（本社）とは異なる事業所の所在地（下記に住所を記載）"]
[null,null,null,"郵便番号",null,null,"-"]
[null,null,null,"住所","都道\n府県",null,null,null,"区市\n町村"]
[null,null,null,null,"丁目・番地・号\n建物名"]
[null,null,null,"　㋑対象労働者が現在在籍している雇用保険適用事業所"]
[null,null,null,null,"　㋐と㋑が同じ住所（移転なし）"]
[null,null,null,null,"　㋐と㋑の住所が異なる（移転があった場合、下記に住所を記載）"]
[null,null,null,"郵便番号",null,null,"-"]
[null,null,null,"住所","都道\n府県",null,null,null,"区市\n町村"]
[null,null,null,null,"丁目・番地・号\n建物名"]
[null,"②","書類送付先\n※代理人不可",null,"　事業主の所在地（印鑑証明書記載の住所）"]
[null,null,null,null,"　①で記載した所在地(㋑がある場合は㋑）"]
[null,null,null,null,"　その他（下記に送付先を記載）※代理人への書類の送付はできません。）"]
[null,null,null,"郵便番号",null,null,"-"]
[null,null,null,"住所","都道\n府県",null,null,null,"区市\n町村"]
[null,null,null,null,"丁目・番地・号\n建物名"]
[null,"③","今年度、既に申請した対象労働者数\n（同一の雇用保険適用事業所内）",null,null,null,null,"④","常用労働者数",null,null,"人"]
[null,"⑤","業種※1",null,null,null,null,"⑥","事業内容"]
[]
[null,"⑦","申請担当者連絡先","所属",null,null,null,null,null,"氏名"]
[null,null,null,"電話番号（所属）※必須"]
[null,null,null,"電話番号（携帯）※任意"]
[null,"※1 日本標準産業分類（大分類）に基づき、アルファベットと業種名を記入してください。"]

{"sheet":"R７様式第1号（別紙２）","index":3,"n_rows":40,"n_cols":23,"rows_kept":40,"cut":false,"hidden":false,"merged":[[7,1,7,2],[7,3,7,12],[7,13,7,18],[7,19,7,21],[8,1,8,2],[8,10,8,13],[18,5,18,10],[18,13,18,20],[19,5,19,11],[9,1,10,2],[9,3,9,7],[9,8,10,9],[9,10,9,11],[9,12,9,17],[9,18,9,22],[10,3,10,7],[10,10,10,11],[10,12,10,17],[10,18,10,22],[15,4,15,22],[16,5,16,11],[16,13,16,20],[17,5,17,10],[17,13,17,20],[11,4,11,22],[12,4,12,6],[13,4,14,6],[13,7,13,22],[14,7,14,22],[19,13,19,20],[22,20,22,22],[21,1,21,5],[21,6,21,7],[21,8,21,13],[21,14,21,17],[21,18,21,19],[21,20,21,22],[22,1,22,5],[22,6,22,7],[22,8,22,13],[22,14,22,17],[22,18,22,19],[20,6,20,10],[20,13,20,20],[11,1,20,2],[24,1,24,2],[24,3,24,12],[24,13,24,18],[24,19,24,21],[25,1,25,2],[25,10,25,13],[35,5,35,10],[35,13,35,20],[36,5,36,11],[26,1,27,2],[26,3,26,7],[26,8,27,9],[26,10,26,11],[26,12,26,17],[26,18,26,22],[27,3,27,7],[27,10,27,11],[27,12,27,17],[27,18,27,22],[32,4,32,22],[33,5,33,11],[33,13,33,20],[34,5,34,10],[34,13,34,20],[28,4,28,22],[29,4,29,6],[30,4,31,6],[30,7,30,22],[31,7,31,22],[36,13,36,20],[39,20,39,22],[38,1,38,5],[38,6,38,7],[38,8,38,13],[38,14,38,17],[38,18,38,19],[38,20,38,22],[39,1,39,5],[39,6,39,7],[39,8,39,13],[39,14,39,17],[39,18,39,19],[37,6,37,10],[37,13,37,20],[28,1,37,2]]}
["様式第1号（第8条関係）別紙2",null,null,null,null,null,null,null,null,null,null,null,null,null,null,null,null,null,null,null,"（令和7年度申請用）"]
[]
["６　雇用保険適用事業所番号"]
[null,null,null,null,null,"-",1,null,null,null,null,null,"-"]
[]
["７　対象労働者の情報"]
["（１）対象労働者"]
[null,"氏名",null,null,null,null,null,null,null,null,null,null,null,"採用日（非正規雇用労働者として採用\nされた場合はその採用日）時点の満年齢",null,null,null,null,null,null,null,null,"歳"]
[null,"採用日",null,"令和",null,"年",null,"月",null,"日","正規転換日\n（正規転換した場合のみ）",null,null,null,"令和",null,"年",null,"月",null,"日"]
[null,"コース",null,"　　正規雇用等コース",null,null,null,null,"労働契約期間",null,"　　　無期　",null,"　　　３年以上（就職氷河期世代）　　",null,null,null,null,null,"　　２年以上（シニア世代）"]
[null,null,null,"　　安定有期雇用コース",null,null,null,null,null,null,null,null,"　　　１年以上３年未満（就職氷河期世代）",null,null,null,null,null,"　　１年以上２年未満（シニア世代）"]
[null,"受給資格確認",null,null,"特定求職者雇用開発助成金　（就職氷河期世代安定雇用実現コース）の支給決定を受けた。"]
[null,null,null,null,"助成金支給番号",null,null,null,null,null,null,null,"-",null,null,null,null,null,null,null,null,"-"]
[null,null,null,null,"支給決定内容",null,null,"　　支給申請額どおりに支給決定を受けた。"]
[null,null,null,null,null,null,null,"　　支給申請額に対し増額又は減額の支給決定を受けた。（申立書（参考様式1）の提出が必要です。）"]
[null,null,null,null,"以下の東京都の就職支援事業に参加し、職業紹介を受け、対象労働者を採用した。"]
[null,null,null,null,null,"就活エクスプレス事業",null,null,null,null,null,null,null,"雇用創出・安定化支援事業"]
[null,null,null,null,null,"ミドルチャレンジ事業（Jobトライ）",null,null,null,null,null,null,null,"原油価格高騰等に係る雇用創出・安定化支援事業"]
[null,null,null,null,null,"東京しごと塾事業",null,null,null,null,null,null,null,"成長産業人材雇用支援事業"]
[null,null,null,null,null,"就職チャレンジ多摩事業（ミドルコース）",null,null,null,null,null,null,null,"ものづくり産業人材確保支援事業"]
[null,null,null,null,null,null,null,null,null,null,null,null,null,"キャリアチェンジ再就職支援事業"]
[null,"採用日時点\n所属事務所所在地（区市町村まで）",null,null,null,null,"東京都",null,null,null,null,null,null,null,"派遣（出向）の有無",null,null,null,"　　有る",null,"　　無し"]
[null,"申請日時点\n所属事務所所在地（区市町村まで）",null,null,null,null,"東京都",null,null,null,null,null,null,null,"派遣（出向）の有無",null,null,null,"　　有る",null,"　　無し"]
["（２）対象労働者"]
[null,"氏名",null,null,null,null,null,null,null,null,null,null,null,"採用日（非正規雇用労働者として採用\nされた場合はその採用日）時点の満年齢",null,null,null,null,null,null,null,null,"歳"]
[null,"採用日",null,"令和",null,"年",null,"月",null,"日","正規転換日\n（正規転換した場合のみ）",null,null,null,"令和",null,"年",null,"月",null,"日"]
[null,"コース",null,"　　正規雇用等コース",null,null,null,null,"労働契約期間",null,"　　　無期　",null,"　　　３年以上（就職氷河期世代）　　　",null,null,null,null,null,"　　２年以上（シニア世代）"]
[null,null,null,"　　安定有期雇用コース",null,null,null,null,null,null,null,null,"　　　１年以上３年未満（就職氷河期世代）　 　　",null,null,null,null,null,"　　１年以上２年未満（シニア世代）"]
[null,"受給資格確認",null,null,"特定求職者雇用開発助成金　（就職氷河期世代安定雇用実現コース）の支給決定を受けた。"]
[null,null,null,null,"助成金支給番号",null,null,null,null,null,null,null,"-",null,null,null,null,null,null,null,null,"-"]
[null,null,null,null,"支給決定内容",null,null,"　　支給申請額どおりに支給決定を受けた。"]
[null,null,null,null,null,null,null,"　　支給申請額に対し増額又は減額の支給決定を受けた。（申立書（参考様式1）の提出が必要です。）"]
[null,null,null,null,"以下の東京都の就職支援事業に参加し、職業紹介を受け、対象労働者を採用した。"]
[null,null,null,null,null,"就活エクスプレス事業",null,null,null,null,null,null,null,"雇用創出・安定化支援事業"]
[null,null,null,null,null,"ミドルチャレンジ事業（Jobトライ）",null,null,null,null,null,null,null,"原油価格高騰等に係る雇用創出・安定化支援事業"]
[null,null,null,null,null,"東京しごと塾事業",null,null,null,null,null,null,null,"成長産業人材雇用支援事業"]
[null,null,null,null,null,"就職チャレンジ多摩事業（ミドルコース）",null,null,null,null,null,null,null,"ものづくり産業人材確保支援事業"]
[null,null,null,null,null,null,null,null,null,null,null,null,null,"キャリアチェンジ再就職支援事業"]
[null,"採用日時点\n所属事務所所在地（区市町村まで）",null,null,null,null,"東京都",null,null,null,null,null,null,null,"派遣（出向）の有無",null,null,null,"　　有る",null,"　　無し"]
[null,"申請日時点\n所属事務所所在地（区市町村まで）",null,null,null,null,"東京都",null,null,null,null,null,null,null,"派遣（出向）の有無",null,null,null,"　　有る",null,"　　無し"]

{"sheet":"R７様式第1号（別紙３）","index":4,"n_rows":20,"n_cols":23,"rows_kept":20,"cut":false,"hidden":false,"merged":[[2,1,2,2],[2,3,2,12],[2,13,2,18],[2,19,2,21],[3,1,3,2],[3,10,3,13],[5,12,5,17],[5,18,5,22],[16,1,16,5],[9,7,9,22],[15,6,15,10],[12,13,12,20],[16,6,16,7],[16,8,16,13],[16,14,16,17],[6,1,15,2],[5,3,5,7],[4,1,5,2],[4,3,4,7],[4,8,5,9],[4,10,4,11],[4,12,4,17],[15,13,15,20],[6,4,6,22],[7,4,7,6],[12,5,12,10],[13,5,13,10],[11,5,11,11],[14,5,14,11],[10,4,10,22],[8,7,8,22],[8,4,9,6],[11,13,11,20],[13,13,13,20],[14,13,14,20],[4,18,4,22],[5,10,5,11],[19,1,31,22],[16,18,16,19],[16,20,16,22],[17,18,17,19],[17,20,17,22],[17,1,17,5],[17,6,17,7],[17,8,17,13],[17,14,17,17]]}
[null,null,null,null,null,null,null,null,null,null,null,null,null,null,null,null,null,null,null,null,null,"（令和7年度申請用）"]
["（３）対象労働者"]
[null,"氏名",null,null,null,null,null,null,null,null,null,null,null,"採用日（非正規雇用労働者として採用\nされた場合はその採用日）時点の満年齢",null,null,null,null,null,null,null,null,"歳"]
[null,"採用日",null,"令和",null,"年",null,"月",null,"日","正規転換日\n（正規転換した場合のみ）",null,null,null,"令和",null,"年",null,"月",null,"日"]
[null,"コース",null,"　　正規雇用等コース",null,null,null,null,"労働契約期間",null,"　　　無期　",null,"　　　３年以上（就職氷河期世代）　　",null,null,null,null,null,"　　２年以上（シニア世代）"]
[null,null,null,"　　安定有期雇用コース",null,null,null,null,null,null,null,null,"　　　１年以上３年未満（就職氷河期世代）",null,null,null,null,null,"　　１年以上２年未満（シニア世代）"]
[null,"受給資格確認",null,null,"特定求職者雇用開発助成金　（就職氷河期世代安定雇用実現コース）の支給決定を受けた。"]
[null,null,null,null,"助成金支給番号",null,null,null,null,null,null,null,"-",null,null,null,null,null,null,null,null,"-"]
[null,null,null,null,"支給決定内容",null,null,"　　支給申請額どおりに支給決定を受けた。"]
[null,null,null,null,null,null,null,"　　支給申請額に対し増額又は減額の支給決定を受けた。（申立書（参考様式1）の提出が必要です。）"]
[null,null,null,null,"以下の東京都の就職支援事業に参加し、職業紹介を受け、対象労働者を採用した。"]
[null,null,null,null,null,"就活エクスプレス事業",null,null,null,null,null,null,null,"雇用創出・安定化支援事業"]
[null,null,null,null,null,"ミドルチャレンジ事業（Jobトライ）",null,null,null,null,null,null,null,"原油価格高騰等に係る雇用創出・安定化支援事業"]
[null,null,null,null,null,"東京しごと塾事業",null,null,null,null,null,null,null,"成長産業人材雇用支援事業"]
[null,null,null,null,null,"就職チャレンジ多摩事業（ミドルコース）",null,null,null,null,null,null,null,"ものづくり産業人材確保支援事業"]
[null,null,null,null,null,null,null,null,null,null,null,null,null,"キャリアチェンジ再就職支援事業"]
[null,"採用日時点\n所属事務所所在地（区市町村まで）",null,null,null,null,"東京都",null,null,null,null,null,null,null,"派遣（出向）の有無",null,null,null,"　　有る",null,"　　無し"]
[null,"申請日時点\n所属事務所所在地（区市町村まで）",null,null,null,null,"東京都",null,null,null,null,null,null,null,"派遣（出向）の有無",null,null,null,"　　有る",null,"　　無し"]
[]
[null,"（注意事項）\n※ 対象労働者が４人以上いる場合、都への申請に当たっては、３人以内の範囲で労働者を選び、上表に記入してください。\n※ 対象労働者が雇用保険被保険者として登録している雇用保険適用事業所での申請となります。\n※ 今回の申請において添付する支給決定通知書が複数ある場合は、助成金支給番号をすべて記入してください。\n※ 国の特定求職者雇用開発助成金において、大企業として支給決定を受けている事業主は本助成金を申請できません。\n※正規雇用労働者（非正規雇用労働者として採用し6か月未満で正規雇用労働者へ転換した者を含む）又は有期雇用労働者として採用した後、1か月を経過していること。\n※ 採用した日から対象労働者の姓が変更になっている場合は、旧姓を記入し、変更履歴が分かる証明書を添付してください。\n※ 所在地変更等により、雇用保険適用事業所番号が変更されている場合は変更後の事業所番号を記入してください。\n\n"]

{"sheet":"プルダウン","index":5,"n_rows":68,"n_cols":25,"rows_kept":68,"cut":false,"hidden":false,"merged":[]}
["取組（開始）","取組（終了）","金額（対象者分）","金額（退職金）","金額","市区町村","転換年","１～3人","退職金","結婚・育児","賃上げ","労働者分金額","退職金分金額","結婚・育児","賃上げ","安定有期","労働者分金額","合計",null,null,"アルファベット業種",null,null,null,"正規・有期"]
[null,null,null,null,null,null,null,null,null,null,null,null,null,null,null,null,null,null,null,null,null,null,null,null,"正規・有期"]
["2025-07-01","2025-09-30",200000,100000,200000,"千代田区","令和4",false,false,false,false,{"$f":"IF(H3=TRUE,300000,0)","v":0},{"$f":"IF(I3=TRUE,100000,0)","v":0},{"$f":"IF(J3=TRUE,100000,0)","v":0},{"$f":"IF(K3=TRUE,120000,0)","v":0},false,{"$f":"IF(P3=TRUE,200000,0)","v":0},null,"Ａ","農業，林業",{"$f":"S3&\"  \"&T3","v":"Ａ  農業，林業"},null,null,null,"正規"]
["2025-08-01","2025-10-31",400000,null,300000,"中央区","令和5",false,false,null,false,{"$f":"IF(H4=TRUE,600000,0)","v":0},{"$f":"IF(I4=TRUE,100000,0)","v":0},null,{"$f":"IF(K4=TRUE,240000,0)","v":0},false,{"$f":"IF(P4=TRUE,400000,0)","v":0},null,"Ｂ","漁業",{"$f":"S4&\"  \"&T4","v":"Ｂ  漁業"},null,null,null,"有期3年以上"]
["2025-09-01","2025-11-30",600000,null,400000,"港区","令和6",false,null,null,false,{"$f":"IF(H5=TRUE,900000,0)","v":0},null,null,{"$f":"IF(K5=TRUE,360000,0)","v":0},false,{"$f":"IF(P5=TRUE,600000,0)","v":0},null,"Ｃ","鉱業，採石業，砂利採取業","Ｃ  鉱業，採石業，砂利採取業",null,null,null,"有期3年未満"]
["2025-10-01","2025-12-31",null,null,500000,"新宿区",null,{"$f":"COUNTIF(H3:H5,TRUE)","v":0},{"$f":"COUNTIF(I3:I5,TRUE)","v":0},{"$f":"COUNTIF(J3:J5,TRUE)","v":0},{"$f":"COUNTIF(K3:K5,TRUE)","v":0},{"$f":"SUM(L3:L5)","v":0},{"$f":"SUM(M3:M5)","v":0},{"$f":"SUM(N3:N5)","v":0},{"$f":"SUM(O3:O5)","v":0},{"$f":"COUNTIF(P3:P5,TRUE)","v":0},{"$f":"SUM(Q3:Q5)","v":0},{"$f":"SUM(L6:O6)+Q6","v":0},"Ｄ","建設業","Ｄ  建設業",null,null,null,"ｼﾆｱ2年以上"]
["2025-11-01","2026-01-31",null,null,600000,"文京区",null,null,null,null,null,null,null,null,null,null,null,null,"Ｅ","製造業","Ｅ  製造業",null,null,null,"ｼﾆｱ2年未満"]
["2025-12-01","2026-02-28",null,null,700000,"台東区",null,{"$f":"IF(H3=TRUE,1)","v":false},null,null,null,null,null,null,{"$f":"O3/120000","v":0},{"$f":"IF(P3=TRUE,1)","v":false},null,null,"Ｆ","電気・ガス・熱供給・水道業","Ｆ  電気・ガス・熱供給・水道業"]
[null,null,null,null,null,"墨田区",null,{"$f":"IF(H4=TRUE,2)","v":false},null,null,null,null,null,null,{"$f":"O4/120000","v":0},{"$f":"IF(P4=TRUE,2)","v":false},null,null,"Ｇ","情報通信業","Ｇ  情報通信業"]
[null,null,null,null,null,"江東区",null,{"$f":"IF(H5=TRUE,3)","v":false},null,null,null,null,null,null,{"$f":"O5/120000","v":0},{"$f":"IF(P5=TRUE,3)","v":false},null,null,"Ｈ","運輸業，郵便業","Ｈ  運輸業，郵便業"]
[null,null,null,null,null,"品川区",null,{"$f":"SUM(H8:H10)","v":0},null,null,null,null,null,null,{"$f":"SUM(O8:O10)","v":0},{"$f":"SUM(P8:P10)","v":0},null,null,"Ｉ","卸売業，小売業","Ｉ  卸売業，小売業"]
[null,null,null,null,null,"目黒区",null,null,null,null,null,null,null,null,null,null,null,null,"Ｊ","金融業，保険業","Ｊ  金融業，保険業"]
[null,null,null,null,null,"大田区",null,null,null,null,null,null,null,null,null,null,null,null,"Ｋ","不動産業，物品賃貸業","Ｋ  不動産業，物品賃貸業"]
[null,null,null,null,null,"世田谷区",null,null,null,null,null,null,null,null,null,null,null,null,"Ｌ","学術研究，専門・技術サービス業","Ｌ  学術研究，専門・技術サービス業"]
[null,null,null,null,null,"渋谷区",null,null,null,null,null,null,null,null,null,null,null,null,"Ｍ","宿泊業，飲食サービス業","Ｍ  宿泊業，飲食サービス業"]
[null,null,null,null,null,"中野区",null,null,null,null,null,null,null,null,null,null,null,null,"Ｎ","生活関連サービス業，娯楽業","Ｎ  生活関連サービス業，娯楽業"]
[null,null,null,null,null,"杉並区",null,null,null,null,null,null,null,null,null,null,null,null,"Ｏ","教育，学習支援業","Ｏ  教育，学習支援業"]
[null,null,null,null,null,"豊島区",null,null,null,null,null,null,null,null,null,null,null,null,"Ｐ","医療，福祉","Ｐ  医療，福祉"]
[null,null,null,null,null,"北区",null,null,null,null,null,null,null,null,null,null,null,null,"Ｑ","複合サービス事業","Ｑ  複合サービス事業"]
[null,null,null,null,null,"荒川区",null,null,null,null,null,null,null,null,null,null,null,null,"Ｒ","サービス業（他に分類されないもの）","Ｒ  サービス業（他に分類されないもの）"]
[null,null,null,null,null,"板橋区"]
[null,null,null,null,null,"練馬区"]
[null,null,null,null,null,"足立区"]
[null,null,null,null,null,"葛飾区"]
[null,null,null,null,null,"江戸川区"]
[null,null,null,null,null,"八王子市"]
[null,null,null,null,null,"立川市"]
[null,null,null,null,null,"武蔵野市"]
[null,null,null,null,null,"三鷹市"]
[null,null,null,null,null,"青梅市"]
[null,null,null,null,null,"府中市"]
[null,null,null,null,null,"昭島市"]
[null,null,null,null,null,"調布市"]
[null,null,null,null,null,"町田市"]
[null,null,null,null,null,"小金井市"]
[null,null,null,null,null,"小平市"]
[null,null,null,null,null,"日野市"]
[null,null,null,null,null,"東村山市"]
[null,null,null,null,null,"国分寺市"]
[null,null,null,null,null,"国立市"]
[null,null,null,null,null,"福生市"]
[null,null,null,null,null,"狛江市"]
[null,null,null,null,null,"東大和市"]
[null,null,null,null,null,"清瀬市"]
[null,null,null,null,null,"東久留米市"]
[null,null,null,null,null,"武蔵村山市"]
[null,null,null,null,null,"多摩市"]
[null,null,null,null,null,"稲城市"]
[null,null,null,null,null,"羽村市"]
[null,null,null,null,null,"あきる野市"]
[null,null,null,null,null,"西東京市"]
[null,null,null,null,null,"西多摩郡 瑞穂町"]
[null,null,null,null,null,"西多摩郡 日の出町"]
[null,null,null,null,null,"西多摩郡 檜原村"]
[null,null,null,null,null,"西多摩郡 奥多摩町"]
[]
[null,null,null,null,null,"大島町"]
[null,null,null,null,null,"利島村"]
[null,null,null,null,null,"新島村"]
[null,null,null,null,null,"神津島村"]
[]
[null,null,null,null,null,"三宅村"]
[null,null,null,null,null,"御蔵島村"]
[]
[null,null,null,null,null,"八丈町"]
[null,null,null,null,null,"青ヶ島村"]
[]
[null,null,null,null,null,"小笠原村"]